Cogmind - Beta 15 @@@ ROGUE MODE // 2025.08.26 @ 00:34:06 Player: Drago Result: Self-destructed Performance ------------- Evolutions (5) 2500 Regions Visited (6) 1200 Robots Destroyed (37) 185 Value Destroyed (966) 966 Prototype IDs (5) 100 Alien Tech Used (0) 0 Bonus (800) 800 TOTAL SCORE: 5751 Bonus ------- Registered with UFD 300 Met Optimus in HQ 500 Cogmind --------- Core Integrity 425/1000 Matter 272/300 Energy 27/100 System Corruption 3% Temperature Cool (0) Movement Hovering (60) Location -5/Factory Parts ------- > --- POWER (1) -------- (None) > --- PROPULSION (5) --- Antigrav System > --- UTILITY (9) ------ Medium Storage Unit Advanced Terrain Scan Processor > --- WEAPON (2) ------- (None) > --- INVENTORY (10) --- Gyrokinetic Inverter Scrap Suit A0-MCA's Component Scanner Peak State ------------ > --- POWER ------------ Light Nuclear Core > --- PROPULSION ------- Cesium-ion Thruster Cesium-ion Thruster Cesium-ion Thruster Makeshift Flight Unit Field Propulsion Drive > --- UTILITY ---------- Advanced Heat Sink Advanced Heat Sink Medium Storage Unit Advanced Sensor Array Advanced Terrain Scanner Seismic Detector Improved Light Armor Plating > --- WEAPON ----------- Field Laser Cooled Plasma Rifle > --- INVENTORY -------- Antigrav System Antigrav System Antigrav System Antigrav System Cesium-ion Thruster Scrap Suit A0-MCA's Component Scanner KE Penetrator [Rating: 62] Favorites ----------- Power Improved Ion Engine Engine Improved Ion Engine Power Core Light Nuclear Core Propulsion Light Treads Treads Light Treads Wheel Subdweller Monowheel Hover Unit Antigrav System Flight Unit Cesium-ion Thruster Utility Makeshift Light Armor Plating Device Seismic Detector Storage Small Storage Unit Processor Advanced Terrain Scan Processor Protection Makeshift Light Armor Plating Weapon Medium Laser Energy Gun Medium Laser Energy Cannon Subdweller Beam Cannon Ballistic Gun Overtuned Barrage Gun Launcher Grenade Launcher Slashing Weapon Makeshift Sword Build | -11 -10 -10 -10 -7 -7 -5 ------- Run | Yrd Mat Min Sub Rec Scr Fac Slots Evolved 10 | . . . . . . 10 Power . | . . . . . . . Propulsion 3 | . . . . . . 3 Utility 7 | . . . . . . 7 Weapon . | . . . . . . . Parts Attached 55 | 8 1 . 10 2 12 22 Power 6 | 1 . . 1 . 2 2 Engine 3 | 1 . . 1 . 1 . Core 3 | . . . . . 1 2 Reactor . | . . . . . . . Propulsion 22 | 2 . . 4 1 4 11 Treads 6 | 2 . . 3 1 . . Leg . | . . . . . . . Wheel 2 | . . . 1 . 1 . Hover 4 | . . . . . . 4 Flight 10 | . . . . . 3 7 Utility 13 | 2 . . 1 1 4 5 Device 7 | 1 . . . . 2 4 Storage 3 | 1 . . . 1 1 . Processor 1 | . . . . . . 1 Hackware . | . . . . . . . Protection 2 | . . . 1 . 1 . Artifact . | . . . . . . . Weapon 14 | 3 1 . 4 . 2 4 Energy Gun 6 | 2 . . . . 1 3 Energy Cannon 1 | . . . 1 . . . Ballistic Gun 4 | 1 . . 1 . 1 1 Ballistic Cannon . | . . . . . . . Launcher 2 | . 1 . 1 . . . Special Weapon . | . . . . . . . Impact Weapon . | . . . . . . . Slashing Weapon 1 | . . . 1 . . . Piercing Weapon . | . . . . . . . Special Melee Weapon . | . . . . . . . Unidentified Prototypes 3 | . . . . . . 3 Parts Lost 23 | . . . 2 . . 21 Power 2 | . . . . . . 2 Propulsion 11 | . . . 1 . . 10 Utility 5 | . . . . . . 5 Weapon 5 | . . . 1 . . 4 Highest Loss Streak 20 | . . . 2 . . 20 To Critical Strikes . | . . . . . . . Average Backups 8 | . 5 6 7 10 11 6 Power . | . . . . . . . Propulsion 2 | . 2 3 . 4 4 3 Utility 3 | . . 1 2 3 4 2 Weapon 2 | . 1 2 3 3 2 . Tool/Special . | . . . . . . . Unused Backups 9 | . . . 1 1 4 3 Power . | . . . . . . . Propulsion 2 | . . . . 1 . 1 Utility 5 | . . . 1 . 2 2 Weapon 1 | . . . . . 1 . Tool/Special 1 | . . . . . 1 . Average Slot Usage (%) 93 | . 100 100 99 100 88 69 Engine 12 | . 14 14 14 14 12 . Treads 21 | . 28 28 27 14 19 . Wheel 2 | . . . . 13 5 . Flight 3 | . . . . . 3 25 Device 6 | . 14 14 7 . 1 14 Storage 13 | . 14 14 14 14 13 5 Protection 8 | . . . 6 14 12 4 Energy Gun 7 | . 14 14 13 . 1 7 Energy Cannon 1 | . . . . 14 2 . Ballistic Gun 7 | . 13 1 1 14 13 1 Launcher 2 | . . 12 5 . . . Slashing Weapon 2 | . . . 6 . . . Peak Build Rating 62 | 7 7 7 15 17 26 62 Average Rating 15 | 5 7 7 11 16 17 47 On Entrance 11 | . 7 7 7 15 17 25 Naked Turns . | . . . . . . . Heaviest Build 103 | 13 13 14 28 103 103 30 Greatest Support 42 | 40 40 40 40 22 42 32 Greatest Overweight (x) 9 | . . . 1 5 9 3 Average Overweight (x) 1 | . . . . 4 3 . Largest Inventory Capacity 25 | 8 8 8 8 25 25 10 Average Capacity 15 | 6 8 8 8 23 22 10 Most Carried 17 | 1 6 6 8 13 17 10 Average Carried 9 | . 5 6 7 11 12 7 Final Capacity 25 | 8 8 8 8 25 10 10 Final Carried 12 | 1 6 6 7 12 8 4 Class Distribution -------------------- 89% | Mutant 5% | Derelict-Mutant 5% | Derelict-Sprinter Dominant Class ---------------- Mutant | -10/Materials Mutant | -10/Mines Mutant | -10/Subcaves Mutant | -7/Recycling Mutant | -7/Scraptown Derelict-Sprinter | -5/Factory Resources | -11 -10 -10 -10 -7 -7 -5 ----------- Run | Yrd Mat Min Sub Rec Scr Fac Matter Collected 1447 | 128 265 238 217 257 30 312 Remotely . | . . . . . . . Salvage Created 1150 | 113 276 51 503 . . 207 Parts 73 | 5 16 7 37 . . 8 Haulers Intercepted . | . . . . . . . Recyclers Shooed 1 | . 1 . . . . . Parts Field Recycled . | . . . . . . . Retrieved Matter . | . . . . . . . Parts Self-Destructed 20 | . . . 20 . . . Prevented . | . . . . . . . Kills | -11 -10 -10 -10 -7 -7 -5 ------- Run | Yrd Mat Min Sub Rec Scr Fac Combat Hostiles Destroyed 30 | . 5 3 18 . . 4 Melee 5 | . . . 5 . . . Guns 6 | . 2 . 1 . . 3 Cannons 2 | . . . 2 . . . AOE 16 | . 3 3 10 . . . Classes Destroyed 9 | 2 2 . 4 . . 1 Tunneler 2 | 2 . . . . . . Recycler 3 | 1 2 . . . . . Turret 1 | . . . 1 . . . Swarmer 13 | . 3 3 6 . . 1 Grunt 7 | . 2 1 2 . . 2 Sentry 1 | . . . 1 . . . Programmer 1 | . . . . . . 1 Artisan 1 | . . . 1 . . . Subdweller 9 | . . . 9 . . . Best Kill Streak 6 | 3 3 2 6 . . 3 Combat Bots Only 6 | . 3 2 6 . . 3 Max Kills in Single Turn 4 | 1 2 2 4 . . 1 Gunslinging . | . . . . . . . Exploded 4 | . 2 2 4 . . . Melee 1 | . . . 1 . . . Uniques/NPCs Destroyed . | . . . . . . . Combat | -11 -10 -10 -10 -7 -7 -5 -------- Run | Yrd Mat Min Sub Rec Scr Fac Hostile Shots Fired 295 | . 24 5 78 . . 188 Missed 100 | . 8 2 30 . . 60 Hits 195 | . 16 3 48 . . 128 Melee 1 | . . . . . . 1 Projectile 194 | . 16 3 48 . . 127 Critical Strikes 8 | . . . 2 . . 6 Damage Taken 3096 | . 157 77 807 . . 2055 Core 822 | . 41 25 181 . . 575 Absorbed by Shields . | . . . . . . . Core Remaining (%) 50 | 100 . . . . 1 . Volleys Fired 88 | 6 14 7 29 . . 32 Largest 2 | 2 2 2 2 . . 2 Hottest 130 | 70 70 70 130 . . 120 Shots Fired 130 | 12 24 9 42 . . 43 Gun 93 | 12 20 4 14 . . 43 Cannon 13 | . . . 13 . . . Launcher 24 | . 4 5 15 . . . Special . | . . . . . . . Kinetic 46 | 6 10 2 18 . . 10 Thermal 64 | 6 10 2 19 . . 27 Explosive 14 | . 4 5 5 . . . Electromagnetic 6 | . . . . . . 6 Robot Hit Streak 12 | 9 11 3 12 . . 9 Robot Miss Streak 3 | 1 2 1 1 . . 3 Penetration Max 1 | . . . . . . 1 Secondary Targets . | . . . . . . . Shots Hit Robots 89 | 10 19 4 31 . . 25 Core Hits 59 | 4 11 10 23 . . 11 Critical Kills . | . . . . . . . Critical Parts Destroyed . | . . . . . . . Critical Strikes 5 | 1 2 1 . . . 1 Burn 5 | 1 2 1 . . . 1 Melee Attacks 15 | . . . 15 . . . Impact . | . . . . . . . Slashing 15 | . . . 15 . . . Piercing . | . . . . . . . Sneak Attacks 1 | . . . 1 . . . Combat Hostiles . | . . . . . . . Follow-up Attacks . | . . . . . . . Damage Inflicted 3025 | 127 385 193 1693 . . 627 Guns 1218 | 127 210 41 216 . . 624 Cannons 281 | . . . 281 . . . Explosions 1229 | . 175 152 902 . . . Melee 294 | . . . 294 . . . Ramming 3 | . . . . . . 3 Kinetic 1304 | 66 109 15 868 . . 246 Thermal 804 | 61 101 26 344 . . 272 Explosive 514 | . 175 152 187 . . . Electromagnetic 106 | . . . . . . 106 Impact . | . . . . . . . Slashing 294 | . . . 294 . . . Piercing . | . . . . . . . Highest Corruption 3 | . . . . . . 3 Average Corruption 2 | . . . . . . 2 Corruption Purged . | . . . . . . . Corruption Blocked . | . . . . . . . Effects 2 | . . . . . . 2 Matter Fused 1 | . . . . . . 1 Heat Flow Errors 1 | . . . . . . 1 Overload Shots 5 | . . . . . . 5 Overflow Damage 93 | . 19 . 74 . . . Projectiles . | . . . . . . . Explosions 51 | . 19 . 32 . . . Melee 42 | . . . 42 . . . Knockbacks . | . . . . . . . Impact . | . . . . . . . Kinetic . | . . . . . . . Secondary . | . . . . . . . Self-Inflicted Damage 122 | . . 50 71 . . 1 Shots 4 | . . 2 2 . . . Rammed 2 | . . . . . . 2 Targets Rammed 2 | . . . . . . 2 Kicked . | . . . . . . . Crushed . | . . . . . . . Highest Temperature 230 | 54 111 9 230 . . 185 Average Temperature 52 | 28 47 6 39 . . 89 Received Heat Transfer 778 | . 48 . 460 . . 270 Siege Activations . | . . . . . . . Martial Activations . | . . . . . . . Shielding Activations . | . . . . . . . Robots Disrupted . | . . . . . . . Combat Hostiles . | . . . . . . . Robots Corrupted . | . . . . . . . Combat Hostiles . | . . . . . . . Parts Fried . | . . . . . . . Impact Corruptions . | . . . . . . . Robots Melted 1 | . . . . . . 1 Combat Hostiles 1 | . . . . . . 1 Parts Melted 8 | 2 1 . 4 . . 1 Heat Transferred 2078 | 259 444 148 555 . . 672 Parts Sabotaged . | . . . . . . . Parts Stolen . | . . . . . . . Parts Stripped . | . . . . . . . Power Chain Reactions . | . . . . . . . Alert | -11 -10 -10 -10 -7 -7 -5 ------- Run | Yrd Mat Min Sub Rec Scr Fac Maximum Alert Level . | . . . . . . . Low Security (%) 100 | 100 100 100 . 100 . 100 Level 1 . | . . . . . . . Level 2 . | . . . . . . . Level 3 . | . . . . . . . Level 4 . | . . . . . . . Level 5 . | . . . . . . . High Security . | . . . . . . . Max Security . | . . . . . . . Peak Influence 103 | 10 103 68 . 60 . 92 Initial 60 | . . 19 . 60 . . Average 22 | . 61 13 . 13 . 24 Influence Increases 867 | 15 161 144 255 . . 292 Destroy 0b10 Robot/C 440 | . 100 60 200 . . 80 Destroy 0b10 Robot/NC 25 | 15 10 . . . . . Destroy Leader 50 | . 20 10 10 . . 10 Allied During Kill 11 | . . 11 . . . . Successful Hack 28 | . 18 . . . . 10 Disable Machine 30 | . . . . . . 30 Destroy Structure 58 | . 13 33 . . . 12 Partial Spotted 15 | . . . . . . 15 Lose Combat Pursuer 210 | . . 30 45 . . 135 Influence Decreases 867 | 15 110 195 128 127 . 292 Entered New Map 99 | . . 32 . 67 . . Time Decay 605 | 15 110 163 118 60 . 139 Lost Part 163 | . . . 10 . . 153 Squads Dispatched 4 | . 1 . . . . 3 Investigation 2 | . 1 . . . . 1 Extermination 2 | . . . . . . 2 Reinforcement . | . . . . . . . Assault . | . . . . . . . Garrison . | . . . . . . . Intercept . | . . . . . . . Searches Triggered . | . . . . . . . Construction Impeded . | . . . . . . . Haulers Reinforced . | . . . . . . . Active Scanning Responses . | . . . . . . . Cargo Convoy Interrupts . | . . . . . . . Stealth | -11 -10 -10 -10 -7 -7 -5 --------- Run | Yrd Mat Min Sub Rec Scr Fac Distress Signals 1 | . . . . . . 1 Communications Jammed . | . . . . . . . Distress Signals . | . . . . . . . Times Spotted 59 | . 6 5 21 . . 27 Peak Tracking Total 13 | . 3 3 6 . . 13 Tactical Retreats 6 | . . 1 1 . . 4 Traps | -11 -10 -10 -10 -7 -7 -5 ------- Run | Yrd Mat Min Sub Rec Scr Fac Traps Triggered 5 | . 1 . 2 . . 2 Indirectly . | . . . . . . . Trap Hack Attempts . | . . . . . . . Triggered . | . . . . . . . Disarmed . | . . . . . . . Reprogrammed . | . . . . . . . Reused . | . . . . . . . Traps Extracted . | . . . . . . . Installed . | . . . . . . . Triggered . | . . . . . . . Machines | -11 -10 -10 -10 -7 -7 -5 ---------- Run | Yrd Mat Min Sub Rec Scr Fac Machines Disabled 6 | . . . 4 . . 2 Max in Single Turn 2 | . . . 2 . . 1 Garrison Access 1 | . . . . . . 1 Machines Repaired . | . . . . . . . Machines Dismantled . | . . . . . . . Machines Sabotaged . | . . . . . . . Overloaded Fab Kills . | . . . . . . . Hacking | -11 -10 -10 -10 -7 -7 -5 --------- Run | Yrd Mat Min Sub Rec Scr Fac Machines Accessed 16 | . 2 . 3 . 5 6 Terminals 4 | . 1 . . . . 3 Fabricators 1 | . . . . . . 1 Repair Stations . | . . . . . . . Recycling Units 2 | . 1 . . . . 1 Scanalyzers . | . . . . . . . Garrison Access 1 | . . . . . . 1 Total Hacks 61 | . 8 . 7 . 28 18 Successful 45 | . 3 . 7 . 28 7 Failed 16 | . 5 . . . . 11 Catastrophic 1 | . . . . . . 1 Database Lockouts . | . . . . . . . Manual 15 | . 7 . . . . 8 Terminals 17 | . 6 . . . . 11 Fabricators 4 | . . . . . . 4 Repair Stations . | . . . . . . . Recycling Units 3 | . 2 . . . . 1 Scanalyzers . | . . . . . . . Garrison Access 2 | . . . . . . 2 Terminal Hacks 37 | . 1 . 7 . 28 1 Record 33 | . . . 5 . 28 . Open Door 1 | . . . 1 . . . Emergency Access Points 1 | . . . . . . 1 Registered Components 1 | . 1 . . . . . Release Object 1 | . . . 1 . . . Fabricator Hacks 1 | . . . . . . 1 Network Status 1 | . . . . . . 1 Repair Station Hacks . | . . . . . . . Recycling Unit Hacks . | . . . . . . . Scanalyzer . | . . . . . . . Garrison Access Hacks 1 | . . . . . . 1 Seal Access 1 | . . . . . . 1 Unauthorized Hacks 6 | . 2 . . . . 4 Terminals 5 | . 2 . . . . 3 Botnet 3 | . 1 . . . . 2 Operators 2 | . 1 . . . . 1 Fabricators . | . . . . . . . Repair Stations . | . . . . . . . Recycling Units 1 | . . . . . . 1 Fedlink 1 | . . . . . . 1 Scanalyzers . | . . . . . . . Garrison Access . | . . . . . . . Data Cores Recovered . | . . . . . . . Used . | . . . . . . . Hacking Detections 7 | . 2 . . . . 5 Full Trace Events . | . . . . . . . Feedback Events . | . . . . . . . Feedback Blocked . | . . . . . . . Robot Schematics Acquired . | . . . . . . . Robots Built . | . . . . . . . Authchips . | . . . . . . . Time . | . . . . . . . Total Robot Build Rating . | . . . . . . . Part Schematics Acquired . | . . . . . . . Parts Built . | . . . . . . . Authchips . | . . . . . . . Time . | . . . . . . . Total Part Build Rating . | . . . . . . . Parts Repaired . | . . . . . . . Time . | . . . . . . . Parts Recycled . | . . . . . . . Recycled Matter . | . . . . . . . Retrieved Matter . | . . . . . . . Retrieved Components . | . . . . . . . Parts Scanalyzed . | . . . . . . . Part Schematics Acquired . | . . . . . . . Parts Damaged . | . . . . . . . Bothacking | -11 -10 -10 -10 -7 -7 -5 ------------ Run | Yrd Mat Min Sub Rec Scr Fac Used RIF Installer . | . . . . . . . Robots Hacked . | . . . . . . . Non-combat . | . . . . . . . Combat . | . . . . . . . Robot Hacks Applied . | . . . . . . . Relay Couplers Released . | . . . . . . . Fabnet Peak Effective % . | . . . . . . . Robots Rewired . | . . . . . . . Allies Hacked . | . . . . . . . Hacks Repelled . | . . . . . . . Allies | -11 -10 -10 -10 -7 -7 -5 -------- Run | Yrd Mat Min Sub Rec Scr Fac Total Allies 3 | . . 3 . . . . Largest Group 3 | . . 3 2 . . . Highest-Rated Group 40 | . . 40 32 . . . Highest-Rated Ally 16 | . . 16 16 . . . Total Orders . | . . . . . . . Ally Attacks 10 | . . . 10 . . . Total Damage 160 | . . . 160 . . . Kills . | . . . . . . . Allies Corrupted . | . . . . . . . Allies Melted . | . . . . . . . Intel | -11 -10 -10 -10 -7 -7 -5 ------- Run | Yrd Mat Min Sub Rec Scr Fac Active Infowar (turns) 3162 | 21 276 784 1293 . 415 373 Sensors 639 | . . . . . 415 224 Terrain 51 | . . . . . . 51 Seismic 2743 | 21 276 784 1293 . . 369 Robot Analysis Total . | . . . . . . . Derelict Logs Recovered 5 | . . . 1 . 4 . Drone Launches . | . . . . . . . Drone Recoveries . | . . . . . . . Exploration | -11 -10 -10 -10 -7 -7 -5 ------------- Run | Yrd Mat Min Sub Rec Scr Fac Turns Passed 7525 | 98 276 784 2395 308 3204 460 Spaces Moved 4477 | 44 144 199 1405 188 1548 949 Core 6 | 2 . . . . 1 3 Treads 2288 | 42 144 199 1390 3 510 . Legs . | . . . . . . . Wheels 872 | . . . 15 185 672 . Hover 21 | . . . . . . 21 Flight 1290 | . . . . . 365 925 Fastest Speed 27 | 50 160 160 120 120 32 27 Average Speed 147 | 155 160 160 159 156 204 29 Slowest Speed 312 | 160 160 160 240 225 312 200 Overloaded Moves . | . . . . . . . Propulsion Burnouts . | . . . . . . . Robots Hopped 5 | . . . . . . 5 Potential Cave-ins . | . . . . . . . Cave-ins Triggered . | . . . . . . . Exploration Rate (%) 45 | 4 35 35 89 39 87 28 Regions Visited 6 Branch Regions 4 Pre-discovered Areas 4 | . . . 1 . 3 . Known Exits Taken 1 | . . . 1 . . . Unknown Exits Taken 5 | 1 1 1 . 1 1 . Scrap Searched 10 | . . . 5 . 5 . Spaces Dug 42 | . . 17 22 . . 3 Terrain Destroyed 180 | . 19 43 112 . . 6 Melee . | . . . . . . . Projectile 8 | . . . 2 . . 6 AOE 172 | . 19 43 110 . . . Terrain Rammed . | . . . . . . . Walls Destroyed . | . . . . . . . Machines Disabled . | . . . . . . . Actions | -11 -10 -10 -10 -7 -7 -5 --------- Run | Yrd Mat Min Sub Rec Scr Fac Total 5243 | 58 165 655 1492 202 1594 1077 Wait 504 | . 1 448 15 2 1 37 Move 4461 | 43 143 198 1404 187 1547 939 Hop 5 | . . . . . . 5 Pick Up 37 | 1 5 . 7 5 13 6 Fast Attach 34 | 7 . . 2 2 11 12 Attach 14 | . . . 1 . 1 12 Detach 3 | . . . . 1 . 2 Swap 25 | 1 2 2 11 2 3 4 Drop 37 | . . . 8 3 18 8 Fire 88 | 6 14 7 29 . . 32 Melee 15 | . . . 15 . . . Ram 2 | . . . . . . 2 Kick . | . . . . . . . Crush . | . . . . . . . Escape Stasis 18 | . . . . . . 18 Rewire . | . . . . . . . Trap . | . . . . . . . Miscellaneous . | . . . . . . . Route ------- -11/Scrapyard -10/Materials -10/Mines -10/Subcaves (discovered 3 exits: *Mat x2 / *Rec) -7/Recycling -7/Scraptown (discovered 2 exits: *Fac x2) -5/Factory (discovered 4 exits: *Fac x2 / Upp / Ext) History --------- Turn | Location | Event 23 | -11/Scrapyard | Discovered new exit (range 15) 99 | -11/Scrapyard | Entered Materials 314 | -10/Materials | Build established: Mutant 345 | -10/Materials | Discovered new exit (range 13) 375 | -10/Materials | Entered Mines 380 | -10/Mines | Assisted by bots powering up and referring to "LRC-V3" 416 | -10/Mines | Met a Derelict bent on vengeance 1145 | -10/Mines | Discovered new exit (range 9) 1159 | -10/Mines | Entered Subcaves 1159 | -10/Subcaves | Accompanied by 2 allies 1167 | -10/Subcaves | Learned Materials garrison access intel 1223 | -10/Subcaves | Learned location of Zion (-7) 1223 | -10/Subcaves | Met a Zionite searching for "candidates" 1269 | -10/Subcaves | Shifting Twisted Machinery released Sub. Laser 1292 | -10/Subcaves | Shifting Twisted Machinery released Sub. Beam Cannon 2090 | -10/Subcaves | Ambushed by angry Subdweller bent on revenge 2284 | -10/Subcaves | Shifting Twisted Machinery released Mak. Light Armor Plating 2299 | -10/Subcaves | Shifting Twisted Machinery released Piercing Trap 2404 | -10/Subcaves | Discovered new exit (range 8) 2408 | -10/Subcaves | Shifting Twisted Machinery released Mak. Light Armor Plating 2410 | -10/Subcaves | Shifting Twisted Machinery released Sub. Beam Cannon 2455 | -10/Subcaves | Core integrity fell below 50% 2759 | -10/Subcaves | Visited Clippyterm 2764 | -10/Subcaves | Identified exit to Recycling 2764 | -10/Subcaves | Identified exit to Materials 2764 | -10/Subcaves | Learned Factory garrison access intel 3304 | -10/Subcaves | Disturbed a concealed Subdweller 3469 | -10/Subcaves | Ambushed by Subdweller buried in earth 3491 | -10/Subcaves | Ambushed by Subdweller buried in earth 3494 | -10/Subcaves | Core integrity fell below 20% 3554 | -10/Subcaves | Entered Recycling 3821 | -7/Recycling | Scanned before Scraplab entrance 3845 | -7/Recycling | Entered Scraplab 3859 | -7/Recycling | Discovered new exit (range 3) 3862 | -7/Recycling | Entered Scraptown 4233 | -7/Scraptown | Scanned Subdweller tech in exchange for log data 4238 | -7/Scraptown | Learned location of Armory (-3) 4241 | -7/Scraptown | Learned location of Quarantine (-2) 4243 | -7/Scraptown | Learned 8 Factory zone layouts 4268 | -7/Scraptown | Discovered new exit (range 5) 4426 | -7/Scraptown | Visited Cyclists 4444 | -7/Scraptown | Visited TADAMA 4465 | -7/Scraptown | Visited Spacefarers 4627 | -7/Scraptown | Heard Great Nut preacher, LISTEN AND RECITE! 5226 | -7/Scraptown | Visited Symbiants 5295 | -7/Scraptown | Visited Cave Peace 5426 | -7/Scraptown | Visited UFD Registry 5426 | -7/Scraptown | Registered with UFD as "Datastep" 5476 | -7/Scraptown | Visited Shadow of the Wyrm 5529 | -7/Scraptown | Visited Awakened 5688 | -7/Scraptown | Entered Cyclist Reading Room 6094 | -7/Scraptown | Visited DA-N13 Charitable Foundation 6112 | -7/Scraptown | Found DCF Scrap (27 items) 6233 | -7/Scraptown | Visited Supply Room 6272 | -7/Scraptown | Visited Science Testing Area 6306 | -7/Scraptown | Visited Scrap Suit Storage 6317 | -7/Scraptown | Found Scrap Suit 6400 | -7/Scraptown | Visited Scrapoid Pod Storage 6411 | -7/Scraptown | Found Scrapoid Pod 6526 | -7/Scraptown | Visited Curators Association 6609 | -7/Scraptown | Visited Junk Repository 6675 | -7/Scraptown | Visited A0-MCA Data Center 6678 | -7/Scraptown | Given an A- rating by A0-MCA 6680 | -7/Scraptown | Found A0-MCA's Component Scanner 6737 | -7/Scraptown | Visited LU-1G1's Boring Crew 6788 | -7/Scraptown | Visited Modified Component R&D 6944 | -7/Scraptown | Build established: Derelict-Mutant 6966 | -7/Scraptown | Met Optimus 6966 | -7/Scraptown | Accepted into 0bPrime 7060 | -7/Scraptown | Discovered new exit (range 3) 7066 | -7/Scraptown | Entered Factory 7066 | -5/Factory | Evolved 10 slots: Propulsion x3, Utility x7 7067 | -5/Factory | Identified exit to Upper Caves 7068 | -5/Factory | Identified exit to Extension 7068 | -5/Factory | Identified exit to Factory 7069 | -5/Factory | Loaded intel: 4 garrison access locations 7330 | -5/Factory | Discovered exit to Factory (range 9) 7365 | -5/Factory | Build established: Derelict-Sprinter 7384 | -5/Factory | Loaded intel: 8 recycling unit locations 7513 | -5/Factory | Core integrity fell below 50% 7526 | -5/Factory | Self-destructed Last Messages --------------- 07502_ Slug penetrates Wall. 07503_ System corrupted: Heat flow error (+153). 07503_ K-01 Serf collects debris. 07503_ Slammed into K-01 Serf. 07503_ Antigrav System destroyed. 07503_ System corrupted by crushing effect (+1). 07504_ Slammed into H-66 Slayer. 07504_ Antigrav System destroyed. 07505_ Slug penetrates Wall. 07506_ Wall collapses. 07506_ Penetrated by Slug. 07507_ ALERT: Potential suspicious activity detected, Programmers report to Factory Zone 9Y. 07508_ Slug penetrates H-66 Slayer. 07509_ Penetrated by Slug. 07514_ U-05 Engineer builds a Wall. 07519_ Slug penetrates Wall. 07523_ Antigrav System destroyed. 07523_ Slug penetrates Wall. Map ----- +----------------------------------------------------+ | ?????????????????????????????????????????????????? | | ?????????????????????????????????????????????????? | | ?????????????????????????????????????????????????? | | ?????????????????????????????????????????????????? | | ?????????????????????????????????????????????????? | | ?????????????????????????????????????????????????? | | ?????????????????????????????????????????????????? | | ?????????????????????????????????????????????????? | | ?????????????????????????????????????????????????? | | ?????????????????????????????????????????????????? | | ??????????????????????????""?????????????????????? | | ??????????????????????????""??????????????##?????? | | ?????????????????????????? ????####+##### ????? | | ??????????????????????????#/????# ????? | | ??????????????????????????# #???# ???? | | ??????????????????????????# #???# "T | | ??????????????????????????# #???# "" | | ??????????????????????????# #???# | | ??????????????????????????# ##### | | ??????????????????????????# | | ??????????????????????????# ## | | ??????????????????????????# ########## | | ??????????????????????????# gg # | | ??????????????????????#####l##### # """ """ | | ??????????????????????# # + """ """ | | ??????????????????????# @ # # """ """ | | ??????????????????????# # # | | ??????????????????????# # # """ """ | | ??????????????????????########### # """ """ | | ???????????????????????????####### ## """ """ | | ???????????????????????????# =% # ## | | ???????????????????????????#!= " ## """ """ | | ???????????????????????????#%% + ## """ """ | | ???????????????????????????# ! # ## """ """ | | ???????????????????????????# """ #^ ^ ## | | ???????????????????????????# """ + ########### | | ???????????????????????????# """ #######?????????? | | ???????????????????????????# #???????????????? | | ???????????????????????????# #???????????????? | | ???????????????????????????# #???????????????? | | ???????????????????????????# ! #???????????????? | | ???????????????????????????# #???????????????? | | ???????????????????????????#######???????????????? | | ?????????????????????????????????????????????????? | | ?????????????????????????????????????????????????? | | ?????????????????????????????????????????????????? | | ?????????????????????????????????????????????????? | | ?????????????????????????????????????????????????? | | ??????????????????????????????????????????????#### | | ??????????????????????????????????????????????# | +----------------------------------------------------+ Best States ------------- Heat Dissipation 78 Energy Generation 15 Energy Capacity 265 Matter Stores 300 Matter Capacity 300 Sight Range 16 Robot Scan Range 16 Terrain Scan Range 20 Terrain Scan Density 210 Armor Coverage 150 Evasion (%) 71 Recoil Reduction 2 Item Schematics ----------------- None Robot Schematics ------------------ None Fabricated ------------ Nothing Repaired ---------- Nothing Alien Tech Used ----------------- None Achievements -------------- None Challenges ------------ None Game ------ Seed SigixRiotLance Manual? 0 Play Time 00:55:35 Cumulative 126.9 hours Start 2025.08.25 @ 23:36:32 End 2025.08.26 @ 00:34:06 Sessions 1 Manual Loads 0 Difficulty Rogue Special Mode None Game No. 108 Rogue 108 Adventurer 0 Explorer 0 Win Type - Total 1 Types 1/0/0/0/0/0/0/0/0/0 Lore% 59 Gallery% 59 Achievement% 56 Wizard Run 0 Options --------- Layout 1 ASCII 0 Keyboard 0 Movement Numpad Keybinds 0 Fullscreen 1 Font 18/SmallcapsGlow Map View 50x40 Zoom Use 0% Tactical HUD 1 Map Filters NONE Filters NONE Steam 1 RUN: 0127a297-99ea-4dcb-b1bf-94e6c4f5f29d